[Event "Late-Titled-Tuesday-Blitz-February-20-2024"]
[Site "Chess.com"]
[Date "2024.02.20"]
[Round "1"]
[White "Nick12772"]
[Black "aa175"]
[Result "1-0"]
[WhiteElo "2393"]
[BlackElo "2691"]
[TimeControl "180+1"]
[EndTime "14:07:26 PST"]
[Termination "Nick12772 won by checkmate"]

1. Nf3 {[%clk 0:03:00.9]} 1... d5 {[%clk 0:02:59.7]} 2. g3 {[%clk 0:03:01]} 2...
Bf5 {[%clk 0:02:59.7]} 3. Bg2 {[%clk 0:03:01]} 3... e6 {[%clk 0:03:00.1]} 4. O-O
{[%clk 0:03:01.4]} 4... Nf6 {[%clk 0:03:00.6]} 5. d3 {[%clk 0:03:00.2]} 5... Be7
{[%clk 0:03:01.2]} 6. Nbd2 {[%clk 0:03:00.7]} 6... O-O {[%clk 0:03:01.5]} 7. b3
{[%clk 0:03:01.1]} 7... c5 {[%clk 0:03:01]} 8. Bb2 {[%clk 0:03:00.6]} 8... Nc6
{[%clk 0:03:01.7]} 9. Re1 {[%clk 0:03:00.2]} 9... a5 {[%clk 0:03:00.1]} 10. e4
{[%clk 0:02:59.1]} 10... Bg6 {[%clk 0:03:00.7]} 11. exd5 {[%clk 0:02:55.5]}
11... Nxd5 {[%clk 0:02:57.2]} 12. a4 {[%clk 0:02:52.4]} 12... Bf6 {[%clk
0:02:57.5]} 13. Qc1 {[%clk 0:02:45.4]} 13... Qd7 {[%clk 0:02:58.2]} 14. Nc4
{[%clk 0:02:43.1]} 14... Bxb2 {[%clk 0:02:56.6]} 15. Qxb2 {[%clk 0:02:40.9]}
15... Qc7 {[%clk 0:02:57.5]} 16. Nfe5 {[%clk 0:02:31.1]} 16... Nxe5 {[%clk
0:02:57.3]} 17. Nxe5 {[%clk 0:02:28.6]} 17... Rad8 {[%clk 0:02:54.4]} 18. Rad1
{[%clk 0:02:17.7]} 18... b6 {[%clk 0:02:52]} 19. h3 {[%clk 0:02:13.2]} 19... Nb4
{[%clk 0:02:52.3]} 20. Qc3 {[%clk 0:02:05.9]} 20... Rd4 {[%clk 0:02:51.5]} 21.
Kh2 {[%clk 0:01:53.2]} 21... Rfd8 {[%clk 0:02:50.8]} 22. h4 {[%clk 0:01:53.2]}
22... Bh5 {[%clk 0:02:46.3]} 23. Rc1 {[%clk 0:01:47.8]} 23... Na2 {[%clk
0:02:44.4]} 24. Qb2 {[%clk 0:01:43.5]} 24... Nxc1 {[%clk 0:02:44.7]} 25. Qxc1
{[%clk 0:01:37.9]} 25... f6 {[%clk 0:02:43.3]} 26. Nc6 {[%clk 0:01:37.8]} 26...
Rxh4+ {[%clk 0:02:34.8]} 27. Kg1 {[%clk 0:01:32.6]} 27... Rhd4 {[%clk
0:02:32.3]} 28. Nxd8 {[%clk 0:01:28.7]} 28... Qxd8 {[%clk 0:02:33.2]} 29. Rxe6
{[%clk 0:01:27.4]} 29... Bf7 {[%clk 0:02:33.6]} 30. Re4 {[%clk 0:01:24.6]} 30...
Rxe4 {[%clk 0:02:32.5]} 31. Bxe4 {[%clk 0:01:25.5]} 31... g6 {[%clk 0:02:31.4]}
32. Qf4 {[%clk 0:01:24.7]} 32... Qd4 {[%clk 0:02:29.9]} 33. Qb8+ {[%clk
0:01:22.2]} 33... Kg7 {[%clk 0:02:29.5]} 34. Qxb6 {[%clk 0:01:22.6]} 34... Qc3
{[%clk 0:02:25.6]} 35. Qc7 {[%clk 0:01:13.4]} 35... Kg8 {[%clk 0:02:03]} 36.
Qc8+ {[%clk 0:01:06.3]} 36... Kg7 {[%clk 0:02:03.2]} 37. Qc7 {[%clk 0:01:06.9]}
37... Kh6 {[%clk 0:02:02.1]} 38. Qxf7 {[%clk 0:01:05.9]} 38... Qxc2 {[%clk
0:01:58]} 39. Qc4 {[%clk 0:01:00.4]} 39... Qb1+ {[%clk 0:01:57.3]} 40. Kg2
{[%clk 0:01:00.5]} 40... f5 {[%clk 0:01:56.2]} 41. Bf3 {[%clk 0:01:00.3]} 41...
Qb2 {[%clk 0:01:38.3]} 42. Qxc5 {[%clk 0:00:59.8]} 42... Qxb3 {[%clk 0:01:37.2]}
43. Qxa5 {[%clk 0:00:59]} 43... Qb2 {[%clk 0:01:36.3]} 44. Qb5 {[%clk
0:00:56.5]} 44... Qa1 {[%clk 0:01:35.9]} 45. a5 {[%clk 0:00:55.1]} 45... f4
{[%clk 0:01:36.6]} 46. gxf4 {[%clk 0:00:49.1]} 46... Qd4 {[%clk 0:01:36.2]} 47.
Qc4 {[%clk 0:00:43.9]} 47... Qd8 {[%clk 0:01:34.6]} 48. a6 {[%clk 0:00:42.7]}
48... Qb6 {[%clk 0:01:33.7]} 49. Bb7 {[%clk 0:00:40.1]} 49... Kh5 {[%clk
0:01:28.8]} 50. Qe4 {[%clk 0:00:39.1]} 50... Kh6 {[%clk 0:01:24.4]} 51. Qe3
{[%clk 0:00:39]} 51... Qb5 {[%clk 0:01:19.3]} 52. Qh3+ {[%clk 0:00:35.3]} 52...
Kg7 {[%clk 0:01:18.6]} 53. Qe3 {[%clk 0:00:33.1]} 53... Kh6 {[%clk 0:01:17.4]}
54. Kg3 {[%clk 0:00:33.6]} 54... Qb1 {[%clk 0:01:16.6]} 55. Bg2 {[%clk
0:00:25.8]} 55... Qa1 {[%clk 0:01:15.5]} 56. f5+ {[%clk 0:00:18]} 56... g5
{[%clk 0:01:13.5]} 57. Qe6+ {[%clk 0:00:17.3]} 57... Kg7 {[%clk 0:01:12.7]} 58.
f6+ {[%clk 0:00:16.6]} 58... Kh6 {[%clk 0:01:09.5]} 59. f7+ {[%clk 0:00:16.6]}
59... Kh5 {[%clk 0:01:10.1]} 60. Qg4+ {[%clk 0:00:14]} 60... Kg6 {[%clk
0:01:09.1]} 61. f8=Q {[%clk 0:00:14.1]} 61... Qe5+ {[%clk 0:01:09.6]} 62. f4
{[%clk 0:00:09.7]} 62... Qe1+ {[%clk 0:01:08.3]} 63. Kf3 {[%clk 0:00:08.9]}
63... Qd1+ {[%clk 0:01:06.8]} 64. Kg3 {[%clk 0:00:09.1]} 64... Qe1+ {[%clk
0:01:07.1]} 65. Kh2 {[%clk 0:00:09.2]} 65... h6 {[%clk 0:01:02.1]} 66. Qff5+
{[%clk 0:00:09.5]} 66... Kg7 {[%clk 0:01:02.5]} 67. fxg5 {[%clk 0:00:10]} 67...
h5 {[%clk 0:01:02.2]} 68. Qd4+ {[%clk 0:00:09.5]} 68... Kg8 {[%clk 0:01:01.8]}
69. Qd8+ {[%clk 0:00:09.8]} 69... Kg7 {[%clk 0:01:01.7]} 70. Qdf6+ {[%clk
0:00:10.3]} 70... Kg8 {[%clk 0:01:02.2]} 71. Q5g6# {[%clk 0:00:10.5]} 1-0

[Event "Late-Titled-Tuesday-Blitz-February-20-2024"]
[Site "Chess.com"]
[Date "2024.02.20"]
[Round "1"]
[White "rionelG"]
[Black "adiosabu"]
[Result "0-1"]
[WhiteElo "2194"]
[BlackElo "2562"]
[TimeControl "180+1"]
[EndTime "14:07:26 PST"]
[Termination "adiosabu won by resignation"]

1. e4 {[%clk 0:02:58.4]} 1... c5 {[%clk 0:02:59.5]} 2. Nf3 {[%clk 0:02:48.2]}
2... Nc6 {[%clk 0:02:58.9]} 3. d4 {[%clk 0:02:42.1]} 3... cxd4 {[%clk
0:02:58.2]} 4. Nxd4 {[%clk 0:02:35]} 4... e5 {[%clk 0:02:58.7]} 5. Nb5 {[%clk
0:02:31.4]} 5... a6 {[%clk 0:02:58.6]} 6. Nd6+ {[%clk 0:02:30.1]} 6... Bxd6
{[%clk 0:02:58.5]} 7. Qxd6 {[%clk 0:02:31]} 7... Qe7 {[%clk 0:02:59.1]} 8. Qxe7+
{[%clk 0:02:31.6]} 8... Ngxe7 {[%clk 0:02:58.8]} 9. Nc3 {[%clk 0:02:10.7]} 9...
d5 {[%clk 0:02:57.7]} 10. Nxd5 {[%clk 0:02:07.5]} 10... Nxd5 {[%clk 0:02:56]}
11. exd5 {[%clk 0:02:06.7]} 11... Nb4 {[%clk 0:02:56.2]} 12. Bd3 {[%clk
0:02:06.4]} 12... Nxd3+ {[%clk 0:02:55.6]} 13. cxd3 {[%clk 0:02:07.3]} 13... Bf5
{[%clk 0:02:55.2]} 14. Ke2 {[%clk 0:02:01.3]} 14... O-O-O {[%clk 0:02:50.1]} 15.
Be3 {[%clk 0:02:00.7]} 15... Rxd5 {[%clk 0:02:49.5]} 16. Rac1+ {[%clk
0:01:59.9]} 16... Kb8 {[%clk 0:02:45.6]} 17. Rc3 {[%clk 0:01:54.4]} 17... Rhd8
{[%clk 0:02:42.5]} 18. Rd1 {[%clk 0:01:54.9]} 18... b5 {[%clk 0:02:37.6]} 19. a3
{[%clk 0:01:53.2]} 19... Kb7 {[%clk 0:02:35.2]} 20. f3 {[%clk 0:01:48.7]} 20...
h5 {[%clk 0:02:31.7]} 21. b4 {[%clk 0:01:47.3]} 21... f6 {[%clk 0:02:26.3]} 22.
Bc5 {[%clk 0:01:33.3]} 22... R8d7 {[%clk 0:02:18.8]} 23. Ke3 {[%clk 0:01:13.8]}
23... g5 {[%clk 0:02:17.4]} 24. h3 {[%clk 0:01:08.1]} 24... h4 {[%clk
0:01:58.1]} 25. Ke2 {[%clk 0:00:55.8]} 25... e4 {[%clk 0:00:57.1]} 26. d4 {[%clk
0:00:49.4]} 26... exf3+ {[%clk 0:00:56.9]} 27. Rxf3 {[%clk 0:00:47.9]} 27... Bg6
{[%clk 0:00:54.8]} 28. Rxf6 {[%clk 0:00:31.1]} 28... Bh5+ {[%clk 0:00:54.4]} 29.
Ke1 {[%clk 0:00:29.9]} 29... Bxd1 {[%clk 0:00:53.4]} 30. Kxd1 {[%clk 0:00:25.7]}
30... Rxc5 {[%clk 0:00:35]} 31. bxc5 {[%clk 0:00:26.6]} 31... Rxd4+ {[%clk
0:00:35.1]} 32. Ke2 {[%clk 0:00:26.7]} 32... Rc4 {[%clk 0:00:34.1]} 33. Rf5
{[%clk 0:00:19.6]} 33... g4 {[%clk 0:00:32.6]} 34. hxg4 {[%clk 0:00:18.9]} 34...
Rxg4 {[%clk 0:00:32.3]} 35. Kf2 {[%clk 0:00:15.6]} 35... Ra4 {[%clk 0:00:28.9]}
36. Rh5 {[%clk 0:00:12.8]} 36... Kc6 {[%clk 0:00:22.3]} 37. Kg1 {[%clk
0:00:04.3]} 37... Rxa3 {[%clk 0:00:21.8]} 38. Rxh4 {[%clk 0:00:03.9]} 38... Kxc5
{[%clk 0:00:21.6]} 39. g4 {[%clk 0:00:04.4]} 39... b4 {[%clk 0:00:20.8]} 40. g5
{[%clk 0:00:04.8]} 40... Rg3+ {[%clk 0:00:20.4]} 41. Kf2 {[%clk 0:00:04.5]}
41... Rxg5 {[%clk 0:00:20.9]} 42. Rh5 {[%clk 0:00:03.9]} 42... Rxh5 {[%clk
0:00:20.3]} 0-1

[Event "Late-Titled-Tuesday-Blitz-February-20-2024"]
[Site "Chess.com"]
[Date "2024.02.20"]
[Round "1"]
[White "HamedWafa4"]
[Black "nicolasbatista3"]
[Result "1-0"]
[WhiteElo "2744"]
[BlackElo "2394"]
[TimeControl "180+1"]
[EndTime "14:07:30 PST"]
[Termination "HamedWafa4 won on time"]

1. e4 {[%clk 0:03:00.1]} 1... c6 {[%clk 0:02:57.6]} 2. d4 {[%clk 0:02:56.1]}
2... d5 {[%clk 0:02:58.5]} 3. e5 {[%clk 0:02:55.9]} 3... c5 {[%clk 0:02:58.6]}
4. Nf3 {[%clk 0:02:54.7]} 4... Nc6 {[%clk 0:02:57.5]} 5. c4 {[%clk 0:02:49.8]}
5... e6 {[%clk 0:02:41]} 6. cxd5 {[%clk 0:02:49.3]} 6... exd5 {[%clk 0:02:35.6]}
7. Nc3 {[%clk 0:02:46.9]} 7... Be6 {[%clk 0:02:08.4]} 8. Bb5 {[%clk 0:02:42.2]}
8... Rc8 {[%clk 0:02:00.9]} 9. O-O {[%clk 0:02:40.7]} 9... Qb6 {[%clk
0:01:56.4]} 10. Be3 {[%clk 0:02:30.3]} 10... c4 {[%clk 0:01:45.1]} 11. b3 {[%clk
0:01:55.4]} 11... cxb3 {[%clk 0:01:43.2]} 12. Qxb3 {[%clk 0:01:53.9]} 12... Ne7
{[%clk 0:01:31.9]} 13. Na4 {[%clk 0:01:52.6]} 13... Qc7 {[%clk 0:01:28.1]} 14.
Nc5 {[%clk 0:01:50.2]} 14... Nf5 {[%clk 0:01:23.9]} 15. Rfc1 {[%clk 0:01:46.2]}
15... Bxc5 {[%clk 0:01:20.3]} 16. Rxc5 {[%clk 0:01:44.5]} 16... Nxe3 {[%clk
0:01:16.2]} 17. fxe3 {[%clk 0:01:41.4]} 17... O-O {[%clk 0:01:09.4]} 18. Rac1
{[%clk 0:01:40.8]} 18... Qb6 {[%clk 0:00:41.1]} 19. Bxc6 {[%clk 0:01:37.4]}
19... Rxc6 {[%clk 0:00:36.8]} 20. Qxb6 {[%clk 0:01:33.6]} 20... Rxb6 {[%clk
0:00:36.5]} 21. Rc7 {[%clk 0:01:25.2]} 21... h6 {[%clk 0:00:34.4]} 22. R1c2
{[%clk 0:01:18.3]} 22... Rb1+ {[%clk 0:00:32]} 23. Kf2 {[%clk 0:01:18.5]} 23...
a5 {[%clk 0:00:31.2]} 24. Rc1 {[%clk 0:01:08.2]} 24... Rb2+ {[%clk 0:00:31.1]}
25. R7c2 {[%clk 0:01:08.5]} 25... Rb4 {[%clk 0:00:30.3]} 26. Rc5 {[%clk
0:01:06.1]} 26... a4 {[%clk 0:00:29.9]} 27. R1c3 {[%clk 0:01:03.7]} 27... b5
{[%clk 0:00:29.7]} 28. Kg3 {[%clk 0:00:57.7]} 28... Rb2 {[%clk 0:00:28.3]} 29.
Rc2 {[%clk 0:00:54.7]} 29... Rb1 {[%clk 0:00:27.6]} 30. Nd2 {[%clk 0:00:47.3]}
30... Rd1 {[%clk 0:00:24.4]} 31. Rxb5 {[%clk 0:00:44.8]} 31... Bf5 {[%clk
0:00:22.7]} 32. e4 {[%clk 0:00:33.4]} 32... dxe4 {[%clk 0:00:20.4]} 33. Nc4
{[%clk 0:00:31.8]} 33... Rxd4 {[%clk 0:00:15.8]} 34. Ne3 {[%clk 0:00:31.4]}
34... Bg6 {[%clk 0:00:14.5]} 35. Kf4 {[%clk 0:00:30.9]} 35... Rd3 {[%clk
0:00:12.6]} 36. Rb4 {[%clk 0:00:27.4]} 36... f6 {[%clk 0:00:12.8]} 37. e6 {[%clk
0:00:26.5]} 37... Re8 {[%clk 0:00:12.9]} 38. Rb7 {[%clk 0:00:24.1]} 38... Rxe6
{[%clk 0:00:11.1]} 39. Rcc7 {[%clk 0:00:23.4]} 39... Be8 {[%clk 0:00:04.5]} 40.
Rxg7+ {[%clk 0:00:23]} 40... Kf8 {[%clk 0:00:05.4]} 41. Rh7 {[%clk 0:00:23.3]}
41... Kg8 {[%clk 0:00:06.2]} 42. Rbg7+ {[%clk 0:00:22.9]} 42... Kf8 {[%clk
0:00:06.4]} 43. Nf5 {[%clk 0:00:23.7]} 1-0

[Event "Late-Titled-Tuesday-Blitz-February-20-2024"]
[Site "Chess.com"]
[Date "2024.02.20"]
[Round "1"]
[White "Zq1"]
[Black "Rud_Makarian"]
[Result "0-1"]
[WhiteElo "2511"]
[BlackElo "3068"]
[TimeControl "180+1"]
[EndTime "14:07:32 PST"]
[Termination "Rud_Makarian won on time"]

1. d4 {[%clk 0:03:00.9]} 1... Nf6 {[%clk 0:03:00.1]} 2. c4 {[%clk 0:02:59.9]}
2... e6 {[%clk 0:03:00.1]} 3. Nf3 {[%clk 0:02:59.3]} 3... d5 {[%clk 0:02:59.6]}
4. Nc3 {[%clk 0:02:58.4]} 4... Be7 {[%clk 0:02:59.4]} 5. Bg5 {[%clk 0:02:53.4]}
5... O-O {[%clk 0:02:58.9]} 6. e3 {[%clk 0:02:53.4]} 6... h6 {[%clk 0:02:59]} 7.
Bh4 {[%clk 0:02:51.5]} 7... Nbd7 {[%clk 0:02:59.4]} 8. a3 {[%clk 0:02:41.8]}
8... dxc4 {[%clk 0:02:51]} 9. Bxc4 {[%clk 0:02:40.6]} 9... a6 {[%clk 0:02:51.5]}
10. Ba2 {[%clk 0:02:31.1]} 10... b5 {[%clk 0:02:49.4]} 11. O-O {[%clk
0:02:28.7]} 11... Bb7 {[%clk 0:02:46]} 12. Qe2 {[%clk 0:02:28.5]} 12... c5
{[%clk 0:02:44.2]} 13. Rfd1 {[%clk 0:02:24.6]} 13... c4 {[%clk 0:02:19.8]} 14.
Ne5 {[%clk 0:02:07.2]} 14... Nxe5 {[%clk 0:02:06.3]} 15. Bxf6 {[%clk 0:01:53.8]}
15... Nf3+ {[%clk 0:02:04]} 16. gxf3 {[%clk 0:01:51.9]} 16... Bxf6 {[%clk
0:02:04]} 17. Bb1 {[%clk 0:01:45.6]} 17... g6 {[%clk 0:02:03]} 18. Be4 {[%clk
0:01:43.2]} 18... Bd5 {[%clk 0:01:54.9]} 19. Bxd5 {[%clk 0:01:39.7]} 19... exd5
{[%clk 0:01:55.8]} 20. f4 {[%clk 0:01:39.4]} 20... Qd7 {[%clk 0:01:52.1]} 21.
Qf3 {[%clk 0:01:39]} 21... Rfd8 {[%clk 0:01:51.6]} 22. Kh1 {[%clk 0:01:32.6]}
22... Qf5 {[%clk 0:01:45.3]} 23. Rg1 {[%clk 0:01:28.4]} 23... Rab8 {[%clk
0:01:44.9]} 24. Qg4 {[%clk 0:01:13.7]} 24... Qxg4 {[%clk 0:01:42]} 25. Rxg4
{[%clk 0:01:13.6]} 25... a5 {[%clk 0:01:41.6]} 26. f5 {[%clk 0:01:02.9]} 26...
g5 {[%clk 0:01:40.4]} 27. Rgg1 {[%clk 0:00:59.8]} 27... Be7 {[%clk 0:01:33.4]}
28. Kg2 {[%clk 0:00:47.9]} 28... Kg7 {[%clk 0:01:29.9]} 29. f4 {[%clk
0:00:24.1]} 29... Kf6 {[%clk 0:01:22.7]} 30. fxg5+ {[%clk 0:00:21.5]} 30... hxg5
{[%clk 0:01:23.6]} 31. Rgf1 {[%clk 0:00:19.6]} 31... Kg7 {[%clk 0:01:05.8]} 32.
Rad1 {[%clk 0:00:15.6]} 32... b4 {[%clk 0:01:04.9]} 33. axb4 {[%clk 0:00:15.1]}
33... axb4 {[%clk 0:01:05.8]} 34. Ne2 {[%clk 0:00:13.9]} 34... Ra8 {[%clk
0:01:03.3]} 35. Ng3 {[%clk 0:00:12.4]} 35... Bd6 {[%clk 0:01:02.2]} 36. Nh5+
{[%clk 0:00:10.1]} 36... Kf8 {[%clk 0:01:02.5]} 37. Nf6 {[%clk 0:00:10]} 37...
Ra2 {[%clk 0:00:57.6]} 38. Rf2 {[%clk 0:00:09.2]} 38... Be7 {[%clk 0:00:33.8]}
39. Nh7+ {[%clk 0:00:09]} 39... Kg7 {[%clk 0:00:34.4]} 40. f6+ {[%clk
0:00:09.5]} 40... Kxh7 {[%clk 0:00:35]} 41. fxe7 {[%clk 0:00:09.8]} 41... Re8
{[%clk 0:00:35.8]} 42. Rxf7+ {[%clk 0:00:09.7]} 42... Kg6 {[%clk 0:00:35.9]} 43.
Rdf1 {[%clk 0:00:09]} 43... Ra6 {[%clk 0:00:25.8]} 44. Kg3 {[%clk 0:00:08.7]}
44... Re6 {[%clk 0:00:25.2]} 45. Kg4 {[%clk 0:00:05]} 45... Re4+ {[%clk
0:00:24.6]} 46. Kg3 {[%clk 0:00:03.8]} 46... Rxe3+ {[%clk 0:00:24.6]} 0-1

[Event "Late-Titled-Tuesday-Blitz-February-20-2024"]
[Site "Chess.com"]
[Date "2024.02.20"]
[Round "1"]
[White "David_George21"]
[Black "SRob2003"]
[Result "1-0"]
[WhiteElo "2379"]
[BlackElo "2675"]
[TimeControl "180+1"]
[EndTime "14:07:32 PST"]
[Termination "David_George21 won on time"]

1. e4 {[%clk 0:03:00.9]} 1... c6 {[%clk 0:02:51.7]} 2. d4 {[%clk 0:02:59.4]}
2... d5 {[%clk 0:02:52.6]} 3. e5 {[%clk 0:02:59.1]} 3... Bf5 {[%clk 0:02:52.6]}
4. h4 {[%clk 0:02:59.2]} 4... h5 {[%clk 0:02:52.1]} 5. Bd3 {[%clk 0:02:59.9]}
5... Bxd3 {[%clk 0:02:52.2]} 6. Qxd3 {[%clk 0:03:00.8]} 6... e6 {[%clk
0:02:52.9]} 7. Nf3 {[%clk 0:02:57.7]} 7... Qa5+ {[%clk 0:02:52.7]} 8. Nbd2
{[%clk 0:02:57.1]} 8... Qa6 {[%clk 0:02:53.1]} 9. c4 {[%clk 0:02:57.1]} 9... Ne7
{[%clk 0:02:53.4]} 10. b3 {[%clk 0:02:56.7]} 10... Nd7 {[%clk 0:02:51.9]} 11.
O-O {[%clk 0:02:56]} 11... Nf5 {[%clk 0:02:47.5]} 12. Bb2 {[%clk 0:02:53.8]}
12... Be7 {[%clk 0:02:41.8]} 13. g3 {[%clk 0:02:51.8]} 13... c5 {[%clk
0:02:24.1]} 14. Qb1 {[%clk 0:02:42.4]} 14... dxc4 {[%clk 0:02:23.5]} 15. Nxc4
{[%clk 0:02:42]} 15... cxd4 {[%clk 0:02:22.2]} 16. Nxd4 {[%clk 0:02:42.3]} 16...
Nxd4 {[%clk 0:02:22]} 17. Bxd4 {[%clk 0:02:43.2]} 17... O-O {[%clk 0:02:19.6]}
18. Qe4 {[%clk 0:02:42.3]} 18... Rac8 {[%clk 0:02:02.6]} 19. Kg2 {[%clk
0:02:32.4]} 19... b5 {[%clk 0:01:54.5]} 20. Ne3 {[%clk 0:02:31.8]} 20... Bc5
{[%clk 0:01:40]} 21. Rfd1 {[%clk 0:02:10.1]} 21... Rfd8 {[%clk 0:01:27.7]} 22.
a4 {[%clk 0:01:44.8]} 22... Bxd4 {[%clk 0:01:11.3]} 23. Qxd4 {[%clk 0:01:34.4]}
23... Qb7+ {[%clk 0:01:02.1]} 24. Kg1 {[%clk 0:01:24.8]} 24... b4 {[%clk
0:00:52.8]} 25. Nc4 {[%clk 0:01:18.2]} 25... Nc5 {[%clk 0:00:38]} 26. Qe3 {[%clk
0:01:02.8]} 26... Qe4 {[%clk 0:00:20.4]} 27. Rxd8+ {[%clk 0:00:57.3]} 27... Rxd8
{[%clk 0:00:20.8]} 28. Qxc5 {[%clk 0:00:56.3]} 28... Rd3 {[%clk 0:00:12.2]} 29.
Nd6 {[%clk 0:00:44.6]} 29... Qe2 {[%clk 0:00:04.1]} 30. Qc4 {[%clk 0:00:31.6]}
30... Qd2 {[%clk 0:00:02.2]} 31. Rf1 {[%clk 0:00:21.3]} 31... Qe2 {[%clk
0:00:01.7]} 32. Qe4 {[%clk 0:00:20.2]} 32... Qd2 {[%clk 0:00:01.9]} 33. Nc4
{[%clk 0:00:19]} 33... Qc3 {[%clk 0:00:02.2]} 34. Na5 {[%clk 0:00:16.5]} 34...
Rd2 {[%clk 0:00:01.9]} 35. Qa8+ {[%clk 0:00:15.8]} 35... Kh7 {[%clk 0:00:02.5]}
36. Qe4+ {[%clk 0:00:15.8]} 36... g6 {[%clk 0:00:03.1]} 37. Qf4 {[%clk
0:00:15.6]} 37... Kg8 {[%clk 0:00:03]} 38. Nb7 {[%clk 0:00:14.3]} 38... Re2
{[%clk 0:00:01.9]} 39. Nd6 {[%clk 0:00:14.3]} 39... Qc7 {[%clk 0:00:02.1]} 40.
Qf6 {[%clk 0:00:13.7]} 40... Rb2 {[%clk 0:00:01.5]} 41. Kg2 {[%clk 0:00:12.4]}
1-0

[Event "Late-Titled-Tuesday-Blitz-February-20-2024"]
[Site "Chess.com"]
[Date "2024.02.20"]
[Round "1"]
[White "maroro07"]
[Black "ChessSkool"]
[Result "0-1"]
[WhiteElo "2383"]
[BlackElo "2737"]
[TimeControl "180+1"]
[EndTime "14:07:33 PST"]
[Termination "ChessSkool won by resignation"]

1. e4 {[%clk 0:03:00.9]} 1... c6 {[%clk 0:02:58.9]} 2. Nf3 {[%clk 0:02:58.2]}
2... d5 {[%clk 0:02:59.8]} 3. Nc3 {[%clk 0:02:57.9]} 3... Bg4 {[%clk 0:02:57.6]}
4. d4 {[%clk 0:02:56.7]} 4... e6 {[%clk 0:02:53.8]} 5. h3 {[%clk 0:02:54.4]}
5... Bh5 {[%clk 0:02:52.9]} 6. g4 {[%clk 0:02:49]} 6... Bg6 {[%clk 0:02:43.9]}
7. exd5 {[%clk 0:02:49.6]} 7... cxd5 {[%clk 0:02:44]} 8. h4 {[%clk 0:02:49.1]}
8... Nc6 {[%clk 0:01:49]} 9. Bb5 {[%clk 0:02:17.8]} 9... Bb4 {[%clk 0:01:44.2]}
10. Ne5 {[%clk 0:02:06.2]} 10... Qb6 {[%clk 0:01:26.1]} 11. Bxc6+ {[%clk
0:01:54.4]} 11... bxc6 {[%clk 0:01:23.7]} 12. h5 {[%clk 0:01:55.2]} 12... Be4
{[%clk 0:00:58.5]} 13. f3 {[%clk 0:01:52.1]} 13... f6 {[%clk 0:00:58.6]} 14. Nc4
{[%clk 0:01:00.7]} 14... dxc4 {[%clk 0:00:36.7]} 15. fxe4 {[%clk 0:00:59.4]}
15... O-O-O {[%clk 0:00:37.4]} 16. Be3 {[%clk 0:00:57.5]} 16... e5 {[%clk
0:00:35.1]} 17. g5 {[%clk 0:00:34.9]} 17... exd4 {[%clk 0:00:28.5]} 18. Qg4+
{[%clk 0:00:35.1]} 18... Kb7 {[%clk 0:00:19.8]} 19. gxf6 {[%clk 0:00:15.7]}
19... gxf6 {[%clk 0:00:15.4]} 20. Qg7+ {[%clk 0:00:14.9]} 20... Ne7 {[%clk
0:00:15.7]} 21. Bf2 {[%clk 0:00:12.5]} 21... Rhg8 {[%clk 0:00:12.5]} 22. Qxf6
{[%clk 0:00:10]} 22... Rgf8 {[%clk 0:00:12.8]} 23. Qh4 {[%clk 0:00:07.9]} 23...
Rxf2 {[%clk 0:00:11.4]} 24. Qxf2 {[%clk 0:00:08.8]} 24... dxc3 {[%clk
0:00:11.5]} 25. Qxb6+ {[%clk 0:00:09.1]} 25... axb6 {[%clk 0:00:12.3]} 26. b3
{[%clk 0:00:09.4]} 26... cxb3 {[%clk 0:00:12]} 27. axb3 {[%clk 0:00:10.3]} 27...
Rd2 {[%clk 0:00:11.8]} 28. Ra2 {[%clk 0:00:08.9]} 28... Rg2 {[%clk 0:00:10.1]}
29. Rf1 {[%clk 0:00:08.3]} 29... Rg4 {[%clk 0:00:09.8]} 30. Rf7 {[%clk
0:00:07.1]} 30... Rxe4+ {[%clk 0:00:10]} 31. Kf2 {[%clk 0:00:06.9]} 31... h6
{[%clk 0:00:09]} 32. Ra4 {[%clk 0:00:05.9]} 32... c5 {[%clk 0:00:08.3]} 33. Rh7
{[%clk 0:00:05.1]} 33... Re6 {[%clk 0:00:07.6]} 34. Kf3 {[%clk 0:00:05.5]} 34...
Kc6 {[%clk 0:00:07.7]} 35. Ra8 {[%clk 0:00:05.1]} 35... Nf5 {[%clk 0:00:08.2]}
36. Rc8+ {[%clk 0:00:04.6]} 36... Kb5 {[%clk 0:00:08.6]} 37. Rf8 {[%clk
0:00:04.2]} 37... Nd4+ {[%clk 0:00:09.5]} 38. Kg4 {[%clk 0:00:04]} 38... Nxc2
{[%clk 0:00:10]} 39. Rb8 {[%clk 0:00:03.3]} 39... Nd4 {[%clk 0:00:09.7]} 40. Ra7
{[%clk 0:00:03.6]} 40... c2 {[%clk 0:00:09.7]} 41. Ra1 {[%clk 0:00:02.7]} 41...
Nxb3 {[%clk 0:00:10.2]} 42. Ra2 {[%clk 0:00:02.7]} 42... c1=Q {[%clk 0:00:10.6]}
0-1